fUSD/lending_fUSD_20240215
["ID","MTS","AMOUNT","RATE_DAILY","PERIOD"]
[314132061,1708015839854,-525.63138842,0.00038356,7]
[314132062,1708015839864,-523.97485584,0.00038356,7]
[314132064,1708015839873,-500.0,0.00038356,7]
[314132067,1708015839883,-519.7698045,0.00038356,7]
[314132069,1708015839893,-523.78870375,0.00038356,7]
[314132071,1708015839902,-513.38736012,0.00038356,7]
[314132073,1708015839911,-500.0,0.00038356,7]
[314132075,1708015839920,-514.12572377,0.00038356,7]
[314132077,1708015839929,-497.32437375,0.00038356,7]
[314132078,1708015839938,-500.0,0.00038356,7]
[314132081,1708015839948,-321.69648625,0.00038356,7]
[314132083,1708015839958,-518.95348025,0.00038356,7]
[314132085,1708015839967,-541.84363656,0.00038356,7]
[314132087,1708015839977,-507.54282206,0.00038356,7]
[314132089,1708015839986,-500.2639986,0.00038356,7]
[314132091,1708015839996,-518.30809308,0.00038356,7]
[314132093,1708015840004,-509.45089559,0.00038356,7]
[314132095,1708015840014,-531.66088362,0.00038356,7]
[314132097,1708015840023,-500.0,0.00038356,7]
[314132099,1708015840033,-506.19133139,0.00038356,7]
[314132101,1708015840043,-529.59137068,0.00038356,7]
[314132103,1708015840052,-504.0668115,0.00038356,7]
[314132105,1708015840062,-516.88491056,0.00038356,7]
[314132107,1708015840071,-507.88071825,0.00038356,7]
[314132109,1708015840080,-511.38957736,0.00038356,7]
[314132111,1708015840089,-508.63643825,0.00038356,7]
[314132113,1708015840099,-515.80534666,0.00038356,7]
[314132115,1708015840108,-388.68033329,0.00038356,7]
[314132117,1708015840117,-506.14005328,0.00038356,7]
[314132119,1708015840126,-257.59444194,0.00038356,7]
[314132121,1708015840136,-516.16671162,0.00038356,7]
[314132123,1708015840146,-502.89774857,0.00038356,7]
[314132125,1708015840155,-508.23824411,0.00038356,7]
[314132127,1708015840164,-527.08760599,0.00038356,7]
[314132129,1708015840173,-501.70064652,0.00038356,7]
[314132131,1708015840183,-500.0,0.00038356,7]
[314132133,1708015840193,-500.0,0.00038356,7]
[314132135,1708015840204,-502.1469545,0.00038356,7]
[314132137,1708015840214,-507.49875347,0.00038356,7]
[314132139,1708015840223,-524.13882089,0.00038356,7]
[314132142,1708015840232,-528.2370296,0.00038356,7]
[314132144,1708015840241,-500.0,0.00038356,7]
[314132146,1708015840251,-500.0,0.00038356,7]
[314132148,1708015840261,-500.27860851,0.00038356,7]
[314132150,1708015840270,-506.38621571,0.00038356,7]
[314132174,1708015840476,-500.0,0.00038356,7]
[314132177,1708015840486,-250.0,0.00038356,7]
[314132179,1708015840495,-500.0,0.00038356,7]
[314132181,1708015840504,-518.98371549,0.00038356,7]
[314132182,1708015840514,-509.28967933,0.00038356,7]
[314132184,1708015840522,-497.76131621,0.00038356,7]
[314132186,1708015840532,-500.0,0.00038356,7]
[314132189,1708015840541,-623.77,0.00038356,7]
[314132191,1708015840550,-537.07880517,0.00038356,7]
[314132193,1708015840559,-500.0,0.00038356,7]
[314132195,1708015840570,-556.86127853,0.00038356,7]
[314132197,1708015840579,-528.90513598,0.00038356,7]
[314132199,1708015840589,-527.9211618,0.00038356,7]
[314132201,1708015840598,-500.0,0.00038356,7]
[314132202,1708015840607,-500.0,0.00038356,7]
[314132204,1708015840617,-518.00919566,0.00038356,7]
[314132207,1708015840627,-500.0,0.00038356,7]
[314132209,1708015840636,-509.82188529,0.00038356,7]
[314132211,1708015840646,-500.0,0.00038356,7]
[314132213,1708015840655,-509.21958738,0.00038356,7]
[314132215,1708015840664,-500.0,0.00038356,7]
[314132217,1708015840673,-500.0,0.00038356,7]
[314132218,1708015840683,-500.0,0.00038356,7]
[314132220,1708015840692,-500.0,0.00038356,7]
[314132223,1708015840703,-521.57248437,0.00038356,7]
[314132225,1708015840713,-509.52539758,0.00038356,7]
[314132227,1708015840722,-500.0,0.00038356,7]
[314132229,1708015840732,-500.0,0.00038356,7]
[314132231,1708015840741,-500.0,0.00038356,7]
[314132233,1708015840750,-500.0,0.00038356,7]
[314132235,1708015840760,-270.45073933,0.00038356,7]
[314132237,1708015840769,-506.84362158,0.00038356,7]
[314132239,1708015840778,-504.64361516,0.00038356,7]
[314132241,1708015840787,-500.0,0.00038356,7]
[314132243,1708015840797,-537.83236643,0.00038356,7]
[314132245,1708015840806,-500.0,0.00038356,7]
[314132247,1708015840815,-500.0,0.00038356,7]
[314132249,1708015840825,-500.0,0.00038356,7]
[314132251,1708015840834,-500.0,0.00038356,7]
[314132253,1708015840843,-500.0,0.00038356,7]
[314132255,1708015840852,-518.51315706,0.00038356,7]
[314132257,1708015840862,-636.56652055,0.00038356,7]
[314132259,1708015840871,-197.36579644,0.00038356,7]
[314132261,1708015840882,-526.94165787,0.00038356,7]
[314132263,1708015840891,-500.0,0.00038356,7]
[314132265,1708015840901,-534.20158857,0.00038356,7]
[314132267,1708015840910,-500.0,0.00038356,2]
[314132269,1708015840920,-500.0,0.00038356,7]
[314132271,1708015840929,-506.9059704,0.00038356,7]
[314132273,1708015840939,-500.0,0.00038356,7]
[314132275,1708015840950,-500.0,0.00038356,2]
[314132277,1708015840960,-500.0,0.00038356,7]
[314132279,1708015840969,-500.0,0.00038356,7]
[314132281,1708015840979,-347.15363267,0.00038356,7]
[314132320,1708015841338,-184.25808448,0.00038356,7]
[314132322,1708015841350,-500.0,0.00038356,2]
[314132324,1708015841359,-500.0,0.00038356,7]
[314132326,1708015841369,-500.0,0.00038356,7]
[314132328,1708015841378,-500.0,0.00038356,7]
[314132330,1708015841389,-500.0,0.00038356,7]
[314132332,1708015841398,-550.33874667,0.00038356,7]
[314132334,1708015841407,-500.0,0.00038356,7]
[314132336,1708015841416,-40.63508305,0.00038356,7]
[314132339,1708015841438,-459.36491695,0.00038356,7]
[314132341,1708015841447,-561.79256569,0.00038356,7]
[314132343,1708015841457,-500.0,0.00038356,7]
[314132345,1708015841466,-500.0,0.00038356,7]
[314132347,1708015841475,-500.0,0.00038356,7]
[314132349,1708015841485,-500.0,0.00038356,7]
[314132352,1708015841494,-500.0,0.00038356,7]
[314132354,1708015841504,-500.0,0.00038356,7]
[314132355,1708015841513,-500.0,0.00038356,7]
[314132356,1708015841522,-500.0,0.00038356,7]
[314132357,1708015841531,-500.0,0.00038356,7]
[314132358,1708015841540,-500.0,0.00038356,7]
[314132359,1708015841549,-500.0,0.00038356,7]
[314132360,1708015841559,-500.0,0.00038356,7]
[314132361,1708015841568,-500.0,0.00038356,7]
[314132362,1708015841578,-500.0,0.00038356,7]
[314132364,1708015841587,-500.0,0.00038356,7]
[314132366,1708015841596,-500.0,0.00038356,7]
[314132368,1708015841605,-500.0,0.00038356,7]
[314132370,1708015841614,-500.0,0.00038356,7]
[314132372,1708015841624,-512.45542507,0.00038356,7]
[314132374,1708015841633,-461.31717773,0.00038356,7]
[314132376,1708015841642,-500.0,0.00038356,7]
[314132378,1708015841652,-507.04905882,0.00038356,7]
[314132380,1708015841662,-500.0,0.00038356,7]
[314132382,1708015841671,-500.0,0.00038356,7]
[314132384,1708015841680,-500.0,0.00038356,7]
[314132386,1708015841689,-500.0,0.00038356,7]
[314132388,1708015841699,-500.0,0.00038356,7]
[314132390,1708015841708,-500.0,0.00038356,7]
[314132392,1708015841717,-500.0,0.00038356,7]
[314132394,1708015841726,-500.0,0.00038356,7]
[314132396,1708015841735,-500.0,0.00038356,7]
[314132398,1708015841745,-500.0,0.00038356,7]
[314132400,1708015841755,-399.95895225,0.00038356,7]
[314132402,1708015841764,-500.0,0.00038356,7]
[314132404,1708015841773,-500.0,0.00038356,7]
[314132406,1708015841783,-500.0,0.00038356,7]
[314132408,1708015841791,-500.0,0.00038356,7]
[314132410,1708015841801,-554.45499327,0.00038356,7]
[314132412,1708015841809,-500.0,0.00038356,7]
[314132414,1708015841819,-500.0,0.00038356,7]
[314132416,1708015841828,-500.0,0.00038356,7]
[314132418,1708015841837,-500.0,0.00038356,7]
[314132420,1708015841846,-527.5922004,0.00038356,7]
[314132422,1708015841856,-500.0,0.00038356,7]
[314132424,1708015841865,-784.64,0.00038356,7]
[314132426,1708015841875,-530.57866567,0.00038356,7]
[314132428,1708015841884,-500.0,0.00038356,7]
[314132430,1708015841894,-500.0,0.00038356,7]
[314132432,1708015841903,-500.0,0.00038356,7]
[314132434,1708015841912,-500.0,0.00038356,7]
[314132436,1708015841921,-517.31852926,0.00038356,7]
[314132438,1708015841930,-500.0,0.00038356,7]
[314132440,1708015841939,-500.0,0.00038356,7]
[314132442,1708015841949,-500.0,0.00038356,7]
[314132444,1708015841958,-533.79886002,0.00038356,7]
[314132446,1708015841966,-540.24086002,0.00038356,7]
[314132448,1708015841976,-500.0,0.00038356,7]
[314132450,1708015841985,-500.0,0.00038356,7]
[314132452,1708015841993,-500.0,0.00038356,7]
[314132454,1708015842002,-500.0,0.00038356,7]
[314132456,1708015842011,-500.0,0.00038356,7]
[314132458,1708015842020,-554.22230291,0.00038356,7]
[314132460,1708015842030,-500.0,0.00038356,7]
[314132462,1708015842039,-500.0,0.00038356,7]
[314132464,1708015842049,-500.0,0.00038356,7]
[314132466,1708015842058,-500.0,0.00038356,7]
[314132468,1708015842067,-500.0,0.00038356,7]
[314132470,1708015842076,-161.46086678,0.00038356,7]
[314132471,1708015842085,-344.93964638,0.00038356,7]
[314132474,1708015842095,-500.0,0.00038356,7]
[314132476,1708015842104,-1549.77,0.00038356,7]
[314132477,1708015842113,-513.45781184,0.00038356,7]
[314132480,1708015842123,-500.0,0.00038356,7]
[314132482,1708015842132,-500.0,0.00038356,7]
[314132484,1708015842141,-500.0,0.00038356,7]
[314132485,1708015842150,-500.0,0.00038356,7]
[314132487,1708015842159,-500.0,0.00038356,7]
[314132489,1708015842169,-500.0,0.00038356,7]
[314132492,1708015842179,-500.0,0.00038356,7]
[314132494,1708015842188,-500.0,0.00038356,7]
[314132496,1708015842200,-500.0,0.00038356,7]
[314132498,1708015842209,-500.0,0.00038356,7]
[314132500,1708015842217,-500.0,0.00038356,7]
[314132502,1708015842226,-488.22262459,0.00038356,7]
[314132505,1708015842244,-11.77737541,0.00038356,7]
[314132507,1708015842253,-500.0,0.00038356,7]
[314132509,1708015842263,-506.24009431,0.00038356,7]
[314132511,1708015842272,-500.0,0.00038356,7]
[314132513,1708015842282,-500.0,0.00038356,7]
[314132515,1708015842292,-500.0,0.00038356,7]
[314132517,1708015842301,-500.0,0.00038356,7]
[314132519,1708015842310,-500.0,0.00038356,7]
[314132521,1708015842319,-500.0,0.00038356,7]
[314132523,1708015842329,-500.0,0.00038356,7]
[314132525,1708015842339,-500.0,0.00038356,7]
[314132527,1708015842351,-500.0,0.00038356,7]
[314132529,1708015842362,-500.0,0.00038356,7]
[314132531,1708015842371,-500.0,0.00038356,7]
[314132533,1708015842381,-544.6820342,0.00038356,7]
[314132535,1708015842392,-505.82189312,0.00038356,7]
[314132537,1708015842401,-321.83993843,0.00038356,7]
[314132539,1708015842411,-500.0,0.00038356,7]
[314132541,1708015842424,-500.0,0.00038356,7]
[314132543,1708015842434,-500.0,0.00038356,7]
[314132545,1708015842444,-437.98319922,0.00038356,7]
[314132547,1708015842456,-511.33637217,0.00038356,7]
[314132549,1708015842467,-500.0,0.00038356,7]
[314132551,1708015842476,-500.0,0.00038356,7]
[314132553,1708015842486,-500.0,0.00038356,7]
[314132555,1708015842496,-500.0,0.00038356,7]
[314132557,1708015842505,-500.0,0.00038356,7]
[314132559,1708015842515,-500.0,0.00038356,2]
[314132561,1708015842525,-500.0,0.00038356,7]
[314132563,1708015842535,-500.0,0.00038356,7]
[314132565,1708015842544,-500.0,0.00038356,7]
[314132567,1708015842553,-1000.0,0.00038356,7]
[314132569,1708015842563,-500.0,0.00038356,7]
[314132571,1708015842574,-500.0,0.00038356,7]
[314132573,1708015842583,-500.0,0.00038356,7]
[314132575,1708015842592,-500.0,0.00038356,7]
[314132577,1708015842602,-500.96332826,0.00038356,7]
[314132579,1708015842612,-500.0,0.00038356,7]
[314132581,1708015842620,-560.96850886,0.00038356,7]
[314132583,1708015842630,-513.0187975,0.00038356,7]
[314132585,1708015842639,-1018.55,0.00038356,7]
[314132587,1708015842648,-502.6566588,0.00038356,7]
[314132590,1708015842656,-500.0,0.00038356,7]
[314132592,1708015842666,-500.0,0.00038356,7]
[314132594,1708015842676,-500.0,0.00038356,7]
[314132597,1708015842685,-500.0,0.00038356,7]
[314132599,1708015842695,-500.0,0.00038356,7]
[314132601,1708015842707,-500.0,0.00038356,7]
[314132603,1708015842715,-500.0,0.00038356,7]
[314132606,1708015842724,-500.0,0.00038356,7]
[314132608,1708015842734,-500.0,0.00038356,7]
[314132610,1708015842743,-500.0,0.00038356,7]
[314132612,1708015842752,-500.0,0.00038356,7]
[314132614,1708015842761,-500.0,0.00038356,7]
[314132616,1708015842771,-506.72466081,0.00038356,7]
[314132618,1708015842780,-567.16,0.00038356,7]
[314132621,1708015842789,-500.0,0.00038356,7]
[314132623,1708015842799,-517.31787911,0.00038356,7]
[314132625,1708015842808,-500.0,0.00038356,7]
[314132627,1708015842817,-500.0,0.00038356,7]
[314132629,1708015842826,-500.0,0.00038356,7]
[314132631,1708015842835,-500.0,0.00038356,7]
[314132633,1708015842844,-645.52726567,0.00038356,7]
[314132635,1708015842853,-500.0,0.00038356,7]
[314132637,1708015842862,-500.0,0.00038356,7]
[314132639,1708015842872,-500.0,0.00038356,7]
[314132641,1708015842882,-500.0,0.00038356,7]
[314132643,1708015842891,-500.0,0.00038356,7]
[314132645,1708015842901,-500.0,0.00038356,7]
[314132648,1708015842910,-500.0,0.00038356,7]
[314132650,1708015842919,-500.0,0.00038356,7]
[314132653,1708015842928,-500.0,0.00038356,7]
[314132655,1708015842937,-595.26857741,0.00038356,7]
[314132658,1708015842947,-500.0,0.00038356,7]
[314132661,1708015842957,-500.0,0.00038356,7]
[314132663,1708015842966,-500.01529521,0.00038356,7]
[314132666,1708015842975,-500.0,0.00038356,7]
[314132669,1708015842984,-515.61636779,0.00038356,7]
[314132672,1708015842993,-548.58365102,0.00038356,7]
[314132674,1708015843003,-500.0,0.00038356,7]
[314132677,1708015843012,-500.0,0.00038356,7]
[314132679,1708015843022,-1340.17,0.00038356,7]
[314132682,1708015843031,-500.0,0.00038356,7]
[314132685,1708015843041,-500.0,0.00038356,7]
[314132687,1708015843050,-585.94770258,0.00038356,7]
[314132690,1708015843059,-500.0,0.00038356,7]
[314132693,1708015843068,-500.0,0.00038356,7]
[314132696,1708015843077,-500.0,0.00038356,7]
[314132698,1708015843085,-500.0,0.00038356,7]
[314132700,1708015843095,-746.45,0.00038356,7]
[314132713,1708015843266,-500.0,0.00038356,7]
[314132715,1708015843276,-500.0,0.00038356,7]
[314132717,1708015843286,-500.0,0.00038356,7]
[314132719,1708015843295,-500.0,0.00038356,7]
[314132721,1708015843304,-500.0,0.00038356,7]
[314132723,1708015843314,-500.0,0.00038356,7]
[314132725,1708015843323,-500.0,0.00038356,7]
[314132727,1708015843333,-500.0,0.00038356,7]
[314132729,1708015843342,-500.0,0.00038356,7]
[314132731,1708015843354,-500.0,0.00038356,7]
[314132733,1708015843363,-513.78643283,0.00038356,7]
[314132735,1708015843372,-500.0,0.00038356,7]
[314132737,1708015843381,-500.0,0.00038356,7]
[314132739,1708015843392,-500.0,0.00038356,7]
[314132741,1708015843401,-488.34282612,0.00038356,7]
[314132743,1708015843410,-500.0,0.00038356,7]
[314132745,1708015843419,-500.0,0.00038356,7]
[314132749,1708015843430,-500.0,0.00038356,7]
[314132752,1708015843440,-505.36604608,0.00038356,7]
[314132754,1708015843450,-500.0,0.00038356,7]
[314132758,1708015843460,-500.0,0.00038356,7]
[314132760,1708015843469,-512.47102481,0.00038356,7]
[314132762,1708015843479,-122.28671028,0.00038356,7]
[314132779,1708015843628,400.0,0.00027,3]
[314132791,1708015843731,450.0,0.00029,3]
[314132796,1708015843771,-377.71328972,0.00038356,7]
[314132798,1708015843780,-181.90997297,0.00038356,7]
[314132802,1708015843803,-318.09002703,0.00038356,7]
[314132804,1708015843812,-500.0,0.00038356,7]
[314132806,1708015843821,-500.0,0.00038356,7]
[314132808,1708015843830,-404.44335281,0.00038356,7]
[314132810,1708015843839,-500.0,0.00038356,7]
[314132812,1708015843849,-500.0,0.00038356,7]
[314132814,1708015843858,-249.90903493,0.00038356,7]
[314132816,1708015843867,-500.0,0.00038356,7]
[314132818,1708015843876,-316.06021573,0.00038356,7]
[314132820,1708015843885,-500.0,0.00038356,7]
[314132822,1708015843894,-500.0,0.00038356,7]
[314132824,1708015843903,-360.74106704,0.00038356,7]
[314132826,1708015843912,-500.0,0.00038356,7]
[314132828,1708015843922,-507.89167163,0.00038356,7]
[314132830,1708015843931,-500.0,0.00038356,7]
[314132832,1708015843940,-500.0,0.00038356,7]
[314132834,1708015843951,-500.0,0.00038356,7]
[314132836,1708015843959,-500.0,0.00038356,7]
[314132838,1708015843969,-500.0,0.00038356,7]
[314132840,1708015843978,-500.0,0.00038356,7]
[314132842,1708015843987,-500.0,0.00038356,7]
[314132844,1708015843996,-500.0,0.00038356,7]
[314132845,1708015844005,-500.0,0.00038356,7]
[314132847,1708015844015,-500.0,0.00038356,7]
[314132849,1708015844024,-500.0,0.00038356,7]
[314132851,1708015844033,-512.62512569,0.00038356,7]
[314132853,1708015844041,-500.0,0.00038356,7]
[314132855,1708015844050,-500.0,0.00038356,7]
[314132857,1708015844059,-500.0,0.00038356,7]
[314132859,1708015844068,-500.0,0.00038356,7]
[314132861,1708015844077,-500.0,0.00038356,7]
[314132863,1708015844087,-1000.0,0.00038356,7]
[314132866,1708015844097,-500.0,0.00038356,7]
[314132868,1708015844107,-500.0,0.00038356,7]
[314132870,1708015844116,-510.56553416,0.00038356,7]
[314132872,1708015844126,-510.19301561,0.00038356,7]
[314132874,1708015844135,-500.0,0.00038356,7]
[314132876,1708015844144,-500.0,0.00038356,7]
[314132878,1708015844153,-500.0,0.00038356,7]
[314132880,1708015844163,-500.0,0.00038356,7]
[314132882,1708015844172,-500.0,0.00038356,7]
[314132884,1708015844181,-500.0,0.00038356,7]
[314132885,1708015844190,-500.0,0.00038356,7]
[314132888,1708015844201,-500.0,0.00038356,7]
[314132890,1708015844211,-500.0,0.00038356,7]
[314132892,1708015844221,-500.0,0.00038356,7]
[314132894,1708015844231,-500.0,0.00038356,7]
[314132896,1708015844241,-635.57,0.00038356,7]
[314132898,1708015844250,-635.57,0.00038356,7]
[314132900,1708015844259,-635.57,0.00038356,7]
[314132902,1708015844268,-500.0,0.00038356,7]
[314132904,1708015844277,-635.57,0.00038356,7]
[314132906,1708015844288,-635.57,0.00038356,7]
[314132908,1708015844297,-635.57,0.00038356,7]
[314132909,1708015844306,-500.0,0.00038356,7]
[314132911,1708015844315,-635.57,0.00038356,7]
[314132913,1708015844324,-635.57,0.00038356,7]
[314132915,1708015844334,-510.4753807,0.00038356,7]
[314132918,1708015844345,-635.57,0.00038356,7]
[314132920,1708015844355,-635.57,0.00038356,7]
[314132921,1708015844364,-635.57,0.00038356,7]
[314132924,1708015844373,-635.57,0.00038356,7]
[314132925,1708015844383,-514.13372613,0.00038356,7]
[314132928,1708015844392,-635.57,0.00038356,7]
[314132930,1708015844401,-500.0,0.00038356,7]
[314132931,1708015844412,-635.57,0.00038356,7]
[314132934,1708015844422,-635.57,0.00038356,7]
[314132935,1708015844432,-500.0,0.00038356,7]
[314132937,1708015844442,-500.0,0.00038356,7]
[314132940,1708015844452,-500.0,0.00038356,7]
[314132942,1708015844462,-635.57,0.00038356,7]
[314132944,1708015844471,-635.57,0.00038356,7]
[314132946,1708015844480,-635.57,0.00038356,7]
[314132947,1708015844491,-635.57,0.00038356,7]
[314132949,1708015844500,-635.57,0.00038356,7]
[314132952,1708015844510,-635.57,0.00038356,7]
[314132954,1708015844520,-635.57,0.00038356,7]
[314132956,1708015844529,-635.57,0.00038356,7]
[314132958,1708015844538,-500.0,0.00038356,7]
[314132960,1708015844551,-500.0,0.00038356,7]
[314132962,1708015844560,-635.78135516,0.00038356,7]
[314132964,1708015844569,-507.70156109,0.00038356,7]
[314132966,1708015844578,-751.81,0.00038356,7]
[314132968,1708015844587,-500.0,0.00038356,7]
[314132970,1708015844596,-536.33105264,0.00038356,7]
[314132971,1708015844605,-500.0,0.00038356,7]
[314132972,1708015844614,-500.0,0.00038356,7]
[314132973,1708015844623,-500.0,0.00038356,7]
[314132974,1708015844633,-500.0,0.00038356,7]
[314132975,1708015844642,-500.0,0.00038356,7]
[314132976,1708015844651,-501.22126351,0.00038356,7]
[314132977,1708015844659,-500.0,0.00038356,7]
[314132979,1708015844669,-500.0,0.00038356,7]
[314132981,1708015844678,-500.0,0.00038356,7]
[314132983,1708015844687,-648.27,0.00038356,7]
[314132985,1708015844696,-592.13,0.00038356,7]
[314132987,1708015844706,-500.0,0.00038356,7]
[314132989,1708015844715,-506.17245539,0.00038356,7]
[314132991,1708015844724,-500.0,0.00038356,7]
[314132993,1708015844734,-500.0,0.00038356,7]
[314132995,1708015844743,-502.86991938,0.00038356,7]
[314132997,1708015844752,-500.0,0.00038356,7]
[314132999,1708015844761,-500.0,0.00038356,7]
[314133001,1708015844770,-500.0,0.00038356,7]
[314133003,1708015844779,-500.0,0.00038356,7]
[314133006,1708015844789,-505.09925864,0.00038356,7]
[314133007,1708015844798,-500.0,0.00038356,7]
[314133009,1708015844807,-500.0,0.00038356,7]
[314133011,1708015844816,-500.0,0.00038356,7]
[314133014,1708015844826,-500.0,0.00038356,7]
[314133015,1708015844835,-500.0,0.00038356,7]
[314133018,1708015844844,-500.0,0.00038356,7]
[314133019,1708015844853,-500.0,0.00038356,7]
[314133021,1708015844862,-500.0,0.00038356,7]
[314133024,1708015844872,-500.0,0.00038356,7]
[314133025,1708015844881,-500.0,0.00038356,7]
[314133028,1708015844891,-500.0,0.00038356,7]
[314133030,1708015844901,-500.0,0.00038356,7]
[314133031,1708015844911,-506.22112595,0.00038356,7]
[314133032,1708015844920,-500.0,0.00038356,7]
[314133033,1708015844929,-500.0,0.00038356,7]
[314133034,1708015844938,-500.0,0.00038356,7]
[314133035,1708015844947,-388.14039945,0.00038356,7]
[314133036,1708015844957,-500.0,0.00038356,7]
[314133037,1708015844966,-197.17,0.00038356,7]
[314133038,1708015844975,-500.0,0.00038356,7]
[314133039,1708015844984,-500.0,0.00038356,7]
[314133040,1708015844993,-500.0,0.00038356,7]
[314133041,1708015845002,-500.0,0.00038356,7]
[314133042,1708015845012,-500.0,0.00038356,7]
[314133043,1708015845020,-500.0,0.00038356,7]
[314133044,1708015845030,-500.0,0.00038356,7]
[314133045,1708015845039,-731.67,0.00038356,7]
[314133046,1708015845048,-500.0,0.00038356,7]
[314133047,1708015845058,-500.0,0.00038356,7]
[314133048,1708015845067,-500.0,0.00038356,7]
[314133049,1708015845076,-500.0,0.00038356,7]
[314133050,1708015845086,-500.0,0.00038356,7]
[314133051,1708015845095,-509.77540713,0.00038356,7]
[314133052,1708015845104,-500.0,0.00038356,7]
[314133053,1708015845113,-500.0,0.00038356,7]
[314133054,1708015845123,-500.0,0.00038356,7]
[314133055,1708015845132,-500.0,0.00038356,7]
[314133056,1708015845141,-500.0,0.00038356,7]
[314133057,1708015845150,-500.0,0.00038356,7]
[314133058,1708015845159,-585.36827855,0.00038356,7]
[314133060,1708015845168,-536.49,0.00038356,2]
[314133062,1708015845177,-507.88223474,0.00038356,7]
[314133064,1708015845186,-500.0,0.00038356,7]
[314133065,1708015845195,-500.0,0.00038356,7]
[314133068,1708015845206,-500.0,0.00038356,7]
[314133069,1708015845215,-500.0,0.00038356,7]
[314133070,1708015845224,-500.0,0.00038356,7]
[314133071,1708015845234,-500.0,0.00038356,7]
[314133072,1708015845243,-500.0,0.00038356,7]
[314133073,1708015845252,-500.0,0.00038356,7]
[314133074,1708015845261,-500.0,0.00038356,7]
[314133075,1708015845270,-500.0,0.00038356,7]
[314133076,1708015845279,-500.0,0.00038356,7]
[314133077,1708015845288,-500.0,0.00038356,7]
[314133078,1708015845298,-500.0,0.00038356,7]
[314133080,1708015845307,-500.0,0.00038356,7]
[314133082,1708015845316,-500.0,0.00038356,7]
[314133084,1708015845325,-513.69766453,0.00038356,7]
[314133086,1708015845335,-500.0,0.00038356,7]
[314133088,1708015845345,-506.87808527,0.00038356,7]
[314133090,1708015845357,-500.0,0.00038356,7]
[314133092,1708015845366,-500.0,0.00038356,7]
[314133094,1708015845375,-500.0,0.00038356,7]
[314133096,1708015845384,-500.0,0.00038356,7]
[314133098,1708015845394,-500.0,0.00038356,7]
[314133100,1708015845404,-500.0,0.00038356,7]
[314133102,1708015845413,-511.89443982,0.00038356,7]
[314133104,1708015845422,-506.40713728,0.00038356,7]
[314133106,1708015845432,-500.0,0.00038356,7]
[314133108,1708015845442,-500.0,0.00038356,7]
[314133110,1708015845451,-500.0,0.00038356,7]
[314133112,1708015845461,-500.0,0.00038356,7]
[314133114,1708015845472,-500.0,0.00038356,7]
[314133116,1708015845480,-500.0,0.00038356,7]
[314133118,1708015845489,-500.0,0.00038356,7]
[314133120,1708015845498,-500.0,0.00038356,7]
[314133122,1708015845507,-500.0,0.00038356,7]
[314133124,1708015845516,-509.95743609,0.00038356,7]
[314133126,1708015845525,-500.0,0.00038356,7]
[314133128,1708015845533,-500.0,0.00038356,7]
[314133130,1708015845542,-500.0,0.00038356,7]
[314133132,1708015845551,-500.0,0.00038356,7]
[314133134,1708015845560,-500.0,0.00038356,2]